{"text_format":"3","workbook":"xlsx","n_sheets":4,"sheets":["UDÁLOSTI","KALENDÁŘ","VERZE PRO TISK","SPRÁVCE"],"not_rendered":{"defined_names":18},"read":"whole","date_system":"1900"}

{"sheet":"UDÁLOSTI","index":0,"n_rows":38,"n_cols":5,"rows_kept":38}
[]
[null,"MĚSÍČNÍ PLÁNOVAČ"]
[null,"OBECNÍCH UDÁLOSTÍ"]
[]
[]
[]
[]
[null,"DATUM","DEN","MĚSÍC","NÁZEV UDÁLOSTI"]
[null,"2016-07-01",{"$f":"IF(ISBLANK(tblEvents[[#This Row],[DATUM]]),\"\",UPPER(TEXT(tblEvents[[#This Row],[DATUM]],\"ddd\")))","v":"PÁ"},{"$f":"IF(ISBLANK(tblEvents[[#This Row],[DATUM]]),\"\",UPPER(TEXT(tblEvents[[#This Row],[DATUM]],\"mmm\")))","v":"VII"},"Obecní zeleň"]
[null,"2016-07-01",{"$f":"IF(ISBLANK(tblEvents[[#This Row],[DATUM]]),\"\",UPPER(TEXT(tblEvents[[#This Row],[DATUM]],\"ddd\")))","v":"PÁ"},{"$f":"IF(ISBLANK(tblEvents[[#This Row],[DATUM]]),\"\",UPPER(TEXT(tblEvents[[#This Row],[DATUM]],\"mmm\")))","v":"VII"},"Městská rada"]
[null,"2016-07-02",{"$f":"IF(ISBLANK(tblEvents[[#This Row],[DATUM]]),\"\",UPPER(TEXT(tblEvents[[#This Row],[DATUM]],\"ddd\")))","v":"SO"},{"$f":"IF(ISBLANK(tblEvents[[#This Row],[DATUM]]),\"\",UPPER(TEXT(tblEvents[[#This Row],[DATUM]],\"mmm\")))","v":"VII"},"Obecní zeleň"]
[null,"2016-07-03",{"$f":"IF(ISBLANK(tblEvents[[#This Row],[DATUM]]),\"\",UPPER(TEXT(tblEvents[[#This Row],[DATUM]],\"ddd\")))","v":"NE"},{"$f":"IF(ISBLANK(tblEvents[[#This Row],[DATUM]]),\"\",UPPER(TEXT(tblEvents[[#This Row],[DATUM]],\"mmm\")))","v":"VII"},"Letní kino v parku"]
[null,"2016-07-08",{"$f":"IF(ISBLANK(tblEvents[[#This Row],[DATUM]]),\"\",UPPER(TEXT(tblEvents[[#This Row],[DATUM]],\"ddd\")))","v":"PÁ"},{"$f":"IF(ISBLANK(tblEvents[[#This Row],[DATUM]]),\"\",UPPER(TEXT(tblEvents[[#This Row],[DATUM]],\"mmm\")))","v":"VII"},"Městská rada"]
[null,"2016-07-11",{"$f":"IF(ISBLANK(tblEvents[[#This Row],[DATUM]]),\"\",UPPER(TEXT(tblEvents[[#This Row],[DATUM]],\"ddd\")))","v":"PO"},{"$f":"IF(ISBLANK(tblEvents[[#This Row],[DATUM]]),\"\",UPPER(TEXT(tblEvents[[#This Row],[DATUM]],\"mmm\")))","v":"VII"},"Obchodní komora – pracovní oběd"]
[null,"2016-07-12",{"$f":"IF(ISBLANK(tblEvents[[#This Row],[DATUM]]),\"\",UPPER(TEXT(tblEvents[[#This Row],[DATUM]],\"ddd\")))","v":"ÚT"},{"$f":"IF(ISBLANK(tblEvents[[#This Row],[DATUM]]),\"\",UPPER(TEXT(tblEvents[[#This Row],[DATUM]],\"mmm\")))","v":"VII"},"Výstava starožitností"]
[null,"2016-07-14",{"$f":"IF(ISBLANK(tblEvents[[#This Row],[DATUM]]),\"\",UPPER(TEXT(tblEvents[[#This Row],[DATUM]],\"ddd\")))","v":"ČT"},{"$f":"IF(ISBLANK(tblEvents[[#This Row],[DATUM]]),\"\",UPPER(TEXT(tblEvents[[#This Row],[DATUM]],\"mmm\")))","v":"VII"},"Obecní workshop"]
[null,"2016-07-15",{"$f":"IF(ISBLANK(tblEvents[[#This Row],[DATUM]]),\"\",UPPER(TEXT(tblEvents[[#This Row],[DATUM]],\"ddd\")))","v":"PÁ"},{"$f":"IF(ISBLANK(tblEvents[[#This Row],[DATUM]]),\"\",UPPER(TEXT(tblEvents[[#This Row],[DATUM]],\"mmm\")))","v":"VII"},"Městská rada"]
[null,"2016-07-19",{"$f":"IF(ISBLANK(tblEvents[[#This Row],[DATUM]]),\"\",UPPER(TEXT(tblEvents[[#This Row],[DATUM]],\"ddd\")))","v":"ÚT"},{"$f":"IF(ISBLANK(tblEvents[[#This Row],[DATUM]]),\"\",UPPER(TEXT(tblEvents[[#This Row],[DATUM]],\"mmm\")))","v":"VII"},"Seminář strategického plánování"]
[null,"2016-07-20",{"$f":"IF(ISBLANK(tblEvents[[#This Row],[DATUM]]),\"\",UPPER(TEXT(tblEvents[[#This Row],[DATUM]],\"ddd\")))","v":"ST"},{"$f":"IF(ISBLANK(tblEvents[[#This Row],[DATUM]]),\"\",UPPER(TEXT(tblEvents[[#This Row],[DATUM]],\"mmm\")))","v":"VII"},"Čištění parkoviště"]
[null,"2016-07-22",{"$f":"IF(ISBLANK(tblEvents[[#This Row],[DATUM]]),\"\",UPPER(TEXT(tblEvents[[#This Row],[DATUM]],\"ddd\")))","v":"PÁ"},{"$f":"IF(ISBLANK(tblEvents[[#This Row],[DATUM]]),\"\",UPPER(TEXT(tblEvents[[#This Row],[DATUM]],\"mmm\")))","v":"VII"},"Městská rada"]
[null,"2016-07-26",{"$f":"IF(ISBLANK(tblEvents[[#This Row],[DATUM]]),\"\",UPPER(TEXT(tblEvents[[#This Row],[DATUM]],\"ddd\")))","v":"ÚT"},{"$f":"IF(ISBLANK(tblEvents[[#This Row],[DATUM]]),\"\",UPPER(TEXT(tblEvents[[#This Row],[DATUM]],\"mmm\")))","v":"VII"},"Procházka v centru"]
[null,"2016-07-26",{"$f":"IF(ISBLANK(tblEvents[[#This Row],[DATUM]]),\"\",UPPER(TEXT(tblEvents[[#This Row],[DATUM]],\"ddd\")))","v":"ÚT"},{"$f":"IF(ISBLANK(tblEvents[[#This Row],[DATUM]]),\"\",UPPER(TEXT(tblEvents[[#This Row],[DATUM]],\"mmm\")))","v":"VII"},"Návštěva pivnic"]
[null,"2016-07-29",{"$f":"IF(ISBLANK(tblEvents[[#This Row],[DATUM]]),\"\",UPPER(TEXT(tblEvents[[#This Row],[DATUM]],\"ddd\")))","v":"PÁ"},{"$f":"IF(ISBLANK(tblEvents[[#This Row],[DATUM]]),\"\",UPPER(TEXT(tblEvents[[#This Row],[DATUM]],\"mmm\")))","v":"VII"},"Městská rada"]
[null,"2016-08-05",{"$f":"IF(ISBLANK(tblEvents[[#This Row],[DATUM]]),\"\",UPPER(TEXT(tblEvents[[#This Row],[DATUM]],\"ddd\")))","v":"PÁ"},{"$f":"IF(ISBLANK(tblEvents[[#This Row],[DATUM]]),\"\",UPPER(TEXT(tblEvents[[#This Row],[DATUM]],\"mmm\")))","v":"VIII"},"Městská rada"]
[null,"2016-08-10",{"$f":"IF(ISBLANK(tblEvents[[#This Row],[DATUM]]),\"\",UPPER(TEXT(tblEvents[[#This Row],[DATUM]],\"ddd\")))","v":"ST"},{"$f":"IF(ISBLANK(tblEvents[[#This Row],[DATUM]]),\"\",UPPER(TEXT(tblEvents[[#This Row],[DATUM]],\"mmm\")))","v":"VIII"},"Čištění parkoviště"]
[null,"2016-08-12",{"$f":"IF(ISBLANK(tblEvents[[#This Row],[DATUM]]),\"\",UPPER(TEXT(tblEvents[[#This Row],[DATUM]],\"ddd\")))","v":"PÁ"},{"$f":"IF(ISBLANK(tblEvents[[#This Row],[DATUM]]),\"\",UPPER(TEXT(tblEvents[[#This Row],[DATUM]],\"mmm\")))","v":"VIII"},"Městská rada"]
[null,"2016-08-13",{"$f":"IF(ISBLANK(tblEvents[[#This Row],[DATUM]]),\"\",UPPER(TEXT(tblEvents[[#This Row],[DATUM]],\"ddd\")))","v":"SO"},{"$f":"IF(ISBLANK(tblEvents[[#This Row],[DATUM]]),\"\",UPPER(TEXT(tblEvents[[#This Row],[DATUM]],\"mmm\")))","v":"VIII"},"Obecní zeleň"]
[null,"2016-09-01",{"$f":"IF(ISBLANK(tblEvents[[#This Row],[DATUM]]),\"\",UPPER(TEXT(tblEvents[[#This Row],[DATUM]],\"ddd\")))","v":"ČT"},{"$f":"IF(ISBLANK(tblEvents[[#This Row],[DATUM]]),\"\",UPPER(TEXT(tblEvents[[#This Row],[DATUM]],\"mmm\")))","v":"IX"},"Rozpočtový výbor "]
[null,"2016-10-01",{"$f":"IF(ISBLANK(tblEvents[[#This Row],[DATUM]]),\"\",UPPER(TEXT(tblEvents[[#This Row],[DATUM]],\"ddd\")))","v":"SO"},{"$f":"IF(ISBLANK(tblEvents[[#This Row],[DATUM]]),\"\",UPPER(TEXT(tblEvents[[#This Row],[DATUM]],\"mmm\")))","v":"X"},"Rozpočtový výbor "]
[null,"2016-11-03",{"$f":"IF(ISBLANK(tblEvents[[#This Row],[DATUM]]),\"\",UPPER(TEXT(tblEvents[[#This Row],[DATUM]],\"ddd\")))","v":"ČT"},{"$f":"IF(ISBLANK(tblEvents[[#This Row],[DATUM]]),\"\",UPPER(TEXT(tblEvents[[#This Row],[DATUM]],\"mmm\")))","v":"XI"},"Rozpočtový výbor "]
[null,"2016-12-01",{"$f":"IF(ISBLANK(tblEvents[[#This Row],[DATUM]]),\"\",UPPER(TEXT(tblEvents[[#This Row],[DATUM]],\"ddd\")))","v":"ČT"},{"$f":"IF(ISBLANK(tblEvents[[#This Row],[DATUM]]),\"\",UPPER(TEXT(tblEvents[[#This Row],[DATUM]],\"mmm\")))","v":"XII"},"Rozpočtový výbor "]
[null,"2017-01-01",{"$f":"IF(ISBLANK(tblEvents[[#This Row],[DATUM]]),\"\",UPPER(TEXT(tblEvents[[#This Row],[DATUM]],\"ddd\")))","v":"NE"},{"$f":"IF(ISBLANK(tblEvents[[#This Row],[DATUM]]),\"\",UPPER(TEXT(tblEvents[[#This Row],[DATUM]],\"mmm\")))","v":"I"},"Rozpočtový výbor "]
[null,"2017-02-02",{"$f":"IF(ISBLANK(tblEvents[[#This Row],[DATUM]]),\"\",UPPER(TEXT(tblEvents[[#This Row],[DATUM]],\"ddd\")))","v":"ČT"},{"$f":"IF(ISBLANK(tblEvents[[#This Row],[DATUM]]),\"\",UPPER(TEXT(tblEvents[[#This Row],[DATUM]],\"mmm\")))","v":"II"},"Rozpočtový výbor "]
[null,"2017-03-02",{"$f":"IF(ISBLANK(tblEvents[[#This Row],[DATUM]]),\"\",UPPER(TEXT(tblEvents[[#This Row],[DATUM]],\"ddd\")))","v":"ČT"},{"$f":"IF(ISBLANK(tblEvents[[#This Row],[DATUM]]),\"\",UPPER(TEXT(tblEvents[[#This Row],[DATUM]],\"mmm\")))","v":"III"},"Rozpočtový výbor "]
[null,"2017-04-01",{"$f":"IF(ISBLANK(tblEvents[[#This Row],[DATUM]]),\"\",UPPER(TEXT(tblEvents[[#This Row],[DATUM]],\"ddd\")))","v":"SO"},{"$f":"IF(ISBLANK(tblEvents[[#This Row],[DATUM]]),\"\",UPPER(TEXT(tblEvents[[#This Row],[DATUM]],\"mmm\")))","v":"IV"},"Rozpočtový výbor "]
[null,"2017-05-01",{"$f":"IF(ISBLANK(tblEvents[[#This Row],[DATUM]]),\"\",UPPER(TEXT(tblEvents[[#This Row],[DATUM]],\"ddd\")))","v":"PO"},{"$f":"IF(ISBLANK(tblEvents[[#This Row],[DATUM]]),\"\",UPPER(TEXT(tblEvents[[#This Row],[DATUM]],\"mmm\")))","v":"V"},"Rozpočtový výbor "]
[null,"2017-06-01",{"$f":"IF(ISBLANK(tblEvents[[#This Row],[DATUM]]),\"\",UPPER(TEXT(tblEvents[[#This Row],[DATUM]],\"ddd\")))","v":"ČT"},{"$f":"IF(ISBLANK(tblEvents[[#This Row],[DATUM]]),\"\",UPPER(TEXT(tblEvents[[#This Row],[DATUM]],\"mmm\")))","v":"VI"},"Rozpočtový výbor "]
[null,"2017-06-02",{"$f":"IF(ISBLANK(tblEvents[[#This Row],[DATUM]]),\"\",UPPER(TEXT(tblEvents[[#This Row],[DATUM]],\"ddd\")))","v":"PÁ"},{"$f":"IF(ISBLANK(tblEvents[[#This Row],[DATUM]]),\"\",UPPER(TEXT(tblEvents[[#This Row],[DATUM]],\"mmm\")))","v":"VI"},"Městská rada"]

{"sheet":"KALENDÁŘ","index":1,"n_rows":35,"n_cols":21,"rows_kept":35,"merged":[[1,5,1,11],[30,8,34,20]]}
[]
[null,null,2016,null,null,{"$f":"LOOKUP(ČísloMěsíce,tblMonths[ČÍSLO],tblMonths[MĚSÍC])","v":"ČERVENEC"}]
[null,null,7,null,null,{"$f":"DATE(ZobrazitRok,ČísloMěsíce,1)","v":"2016-07-01"},null,null,{"$f":"WEEKDAY(PočátečníDatum)","v":6}]
[null,null,"PO",null,null,"ÚT",null,null,"ST",null,null,"ČT",null,null,"PÁ",null,null,"SO",null,null,"NE"]
[]
[null,null,{"$f":"PočátečníDatum-(WEEKDAY(PočátečníDatum)-2)+{0;1;2;3;4;5}*7 +{1,2,3,4,5,6,7}-3+COLUMN(B1)","v":"2016-06-27"},null,null,{"$f":"PočátečníDatum-(WEEKDAY(PočátečníDatum)-2)+{0;1;2;3;4;5}*7 +{1,2,3,4,5,6,7}-3+COLUMN(C1)","v":"2016-06-28"},null,null,{"$f":"PočátečníDatum-(WEEKDAY(PočátečníDatum)-2)+{0;1;2;3;4;5}*7 +{1,2,3,4,5,6,7}-3+COLUMN(D1)","v":"2016-06-29"},null,null,{"$f":"PočátečníDatum-(WEEKDAY(PočátečníDatum)-2)+{0;1;2;3;4;5}*7 +{1,2,3,4,5,6,7}-3+COLUMN(E1)","v":"2016-06-30"},null,null,{"$f":"PočátečníDatum-(WEEKDAY(PočátečníDatum)-2)+{0;1;2;3;4;5}*7 +{1,2,3,4,5,6,7}-3+COLUMN(F1)","v":"2016-07-01"},null,null,{"$f":"PočátečníDatum-(WEEKDAY(PočátečníDatum)-2)+{0;1;2;3;4;5}*7 +{1,2,3,4,5,6,7}-3+COLUMN(G1)","v":"2016-07-02"},null,null,{"$f":"PočátečníDatum-(WEEKDAY(PočátečníDatum)-2)+{0;1;2;3;4;5}*7 +{1,2,3,4,5,6,7}-3+COLUMN(H1)","v":"2016-07-03"}]
[null,null,{"$f":"IFERROR(INDEX(tblEvents[],SMALL(IF(Data=C$6,ROW(Data)),ROW(1:1))-PočátečníŘádekTabulky,4),\"\")","v":""},null,null,{"$f":"IFERROR(INDEX(tblEvents[],SMALL(IF(Data=F$6,ROW(Data)),ROW(1:1))-PočátečníŘádekTabulky,4),\"\")","v":""},null,null,{"$f":"IFERROR(INDEX(tblEvents[],SMALL(IF(Data=I$6,ROW(Data)),ROW(1:1))-PočátečníŘádekTabulky,4),\"\")","v":""},null,null,{"$f":"IFERROR(INDEX(tblEvents[],SMALL(IF(Data=L$6,ROW(Data)),ROW(1:1))-PočátečníŘádekTabulky,4),\"\")","v":""},null,null,{"$f":"IFERROR(INDEX(tblEvents[],SMALL(IF(Data=O$6,ROW(Data)),ROW(1:1))-PočátečníŘádekTabulky,4),\"\")","v":"Obecní zeleň"},null,null,{"$f":"IFERROR(INDEX(tblEvents[],SMALL(IF(Data=R$6,ROW(Data)),ROW(1:1))-PočátečníŘádekTabulky,4),\"\")","v":"Obecní zeleň"},null,null,{"$f":"IFERROR(INDEX(tblEvents[],SMALL(IF(Data=U$6,ROW(Data)),ROW(1:1))-PočátečníŘádekTabulky,4),\"\")","v":"Letní kino v parku"}]
[null,null,{"$f":"IFERROR(INDEX(tblEvents[],SMALL(IF(Data=C$6,ROW(Data)),ROW(2:2))-PočátečníŘádekTabulky,4),\"\")","v":""},null,null,{"$f":"IFERROR(INDEX(tblEvents[],SMALL(IF(Data=F$6,ROW(Data)),ROW(2:2))-PočátečníŘádekTabulky,4),\"\")","v":""},null,null,{"$f":"IFERROR(INDEX(tblEvents[],SMALL(IF(Data=I$6,ROW(Data)),ROW(2:2))-PočátečníŘádekTabulky,4),\"\")","v":""},null,null,{"$f":"IFERROR(INDEX(tblEvents[],SMALL(IF(Data=L$6,ROW(Data)),ROW(2:2))-PočátečníŘádekTabulky,4),\"\")","v":""},null,null,{"$f":"IFERROR(INDEX(tblEvents[],SMALL(IF(Data=O$6,ROW(Data)),ROW(2:2))-PočátečníŘádekTabulky,4),\"\")","v":"Městská rada"},null,null,{"$f":"IFERROR(INDEX(tblEvents[],SMALL(IF(Data=R$6,ROW(Data)),ROW(2:2))-PočátečníŘádekTabulky,4),\"\")","v":""},null,null,{"$f":"IFERROR(INDEX(tblEvents[],SMALL(IF(Data=U$6,ROW(Data)),ROW(2:2))-PočátečníŘádekTabulky,4),\"\")","v":""}]
[null,null,{"$f":"IFERROR(INDEX(tblEvents[],SMALL(IF(Data=C$6,ROW(Data)),ROW(3:3))-PočátečníŘádekTabulky,4),\"\")","v":""},null,null,{"$f":"IFERROR(INDEX(tblEvents[],SMALL(IF(Data=F$6,ROW(Data)),ROW(3:3))-PočátečníŘádekTabulky,4),\"\")","v":""},null,null,{"$f":"IFERROR(INDEX(tblEvents[],SMALL(IF(Data=I$6,ROW(Data)),ROW(3:3))-PočátečníŘádekTabulky,4),\"\")","v":""},null,null,{"$f":"IFERROR(INDEX(tblEvents[],SMALL(IF(Data=L$6,ROW(Data)),ROW(3:3))-PočátečníŘádekTabulky,4),\"\")","v":""},null,null,{"$f":"IFERROR(INDEX(tblEvents[],SMALL(IF(Data=O$6,ROW(Data)),ROW(3:3))-PočátečníŘádekTabulky,4),\"\")","v":""},null,null,{"$f":"IFERROR(INDEX(tblEvents[],SMALL(IF(Data=R$6,ROW(Data)),ROW(3:3))-PočátečníŘádekTabulky,4),\"\")","v":""},null,null,{"$f":"IFERROR(INDEX(tblEvents[],SMALL(IF(Data=U$6,ROW(Data)),ROW(3:3))-PočátečníŘádekTabulky,4),\"\")","v":""}]
[null,null,{"$f":"IFERROR(INDEX(tblEvents[],SMALL(IF(Data=C$6,ROW(Data)),ROW(4:4))-PočátečníŘádekTabulky,4),\"\")","v":""},null,null,{"$f":"IFERROR(INDEX(tblEvents[],SMALL(IF(Data=F$6,ROW(Data)),ROW(4:4))-PočátečníŘádekTabulky,4),\"\")","v":""},null,null,{"$f":"IFERROR(INDEX(tblEvents[],SMALL(IF(Data=I$6,ROW(Data)),ROW(4:4))-PočátečníŘádekTabulky,4),\"\")","v":""},null,null,{"$f":"IFERROR(INDEX(tblEvents[],SMALL(IF(Data=L$6,ROW(Data)),ROW(4:4))-PočátečníŘádekTabulky,4),\"\")","v":""},null,null,{"$f":"IFERROR(INDEX(tblEvents[],SMALL(IF(Data=O$6,ROW(Data)),ROW(4:4))-PočátečníŘádekTabulky,4),\"\")","v":""},null,null,{"$f":"IFERROR(INDEX(tblEvents[],SMALL(IF(Data=R$6,ROW(Data)),ROW(4:4))-PočátečníŘádekTabulky,4),\"\")","v":""},null,null,{"$f":"IFERROR(INDEX(tblEvents[],SMALL(IF(Data=U$6,ROW(Data)),ROW(4:4))-PočátečníŘádekTabulky,4),\"\")","v":""}]
[null,null,{"$f":"U6+1","v":"2016-07-04"},null,null,{"$f":"C11+1","v":"2016-07-05"},null,null,{"$f":"F11+1","v":"2016-07-06"},null,null,{"$f":"I11+1","v":"2016-07-07"},null,null,{"$f":"L11+1","v":"2016-07-08"},null,null,{"$f":"O11+1","v":"2016-07-09"},null,null,{"$f":"R11+1","v":"2016-07-10"}]
[null,null,{"$f":"IFERROR(INDEX(tblEvents[],SMALL(IF(Data=C$11,ROW(Data)),ROW(1:1))-PočátečníŘádekTabulky,4),\"\")","v":""},null,null,{"$f":"IFERROR(INDEX(tblEvents[],SMALL(IF(Data=F$11,ROW(Data)),ROW(1:1))-PočátečníŘádekTabulky,4),\"\")","v":""},null,null,{"$f":"IFERROR(INDEX(tblEvents[],SMALL(IF(Data=I$11,ROW(Data)),ROW(1:1))-PočátečníŘádekTabulky,4),\"\")","v":""},null,null,{"$f":"IFERROR(INDEX(tblEvents[],SMALL(IF(Data=L$11,ROW(Data)),ROW(1:1))-PočátečníŘádekTabulky,4),\"\")","v":""},null,null,{"$f":"IFERROR(INDEX(tblEvents[],SMALL(IF(Data=O$11,ROW(Data)),ROW(1:1))-PočátečníŘádekTabulky,4),\"\")","v":"Městská rada"},null,null,{"$f":"IFERROR(INDEX(tblEvents[],SMALL(IF(Data=R$11,ROW(Data)),ROW(1:1))-PočátečníŘádekTabulky,4),\"\")","v":""},null,null,{"$f":"IFERROR(INDEX(tblEvents[],SMALL(IF(Data=U$11,ROW(Data)),ROW(1:1))-PočátečníŘádekTabulky,4),\"\")","v":""}]
[null,null,{"$f":"IFERROR(INDEX(tblEvents[],SMALL(IF(Data=C$11,ROW(Data)),ROW(2:2))-PočátečníŘádekTabulky,4),\"\")","v":""},null,null,{"$f":"IFERROR(INDEX(tblEvents[],SMALL(IF(Data=F$11,ROW(Data)),ROW(2:2))-PočátečníŘádekTabulky,4),\"\")","v":""},null,null,{"$f":"IFERROR(INDEX(tblEvents[],SMALL(IF(Data=I$11,ROW(Data)),ROW(2:2))-PočátečníŘádekTabulky,4),\"\")","v":""},null,null,{"$f":"IFERROR(INDEX(tblEvents[],SMALL(IF(Data=L$11,ROW(Data)),ROW(2:2))-PočátečníŘádekTabulky,4),\"\")","v":""},null,null,{"$f":"IFERROR(INDEX(tblEvents[],SMALL(IF(Data=O$11,ROW(Data)),ROW(2:2))-PočátečníŘádekTabulky,4),\"\")","v":""},null,null,{"$f":"IFERROR(INDEX(tblEvents[],SMALL(IF(Data=R$11,ROW(Data)),ROW(2:2))-PočátečníŘádekTabulky,4),\"\")","v":""},null,null,{"$f":"IFERROR(INDEX(tblEvents[],SMALL(IF(Data=U$11,ROW(Data)),ROW(2:2))-PočátečníŘádekTabulky,4),\"\")","v":""}]
[null,null,{"$f":"IFERROR(INDEX(tblEvents[],SMALL(IF(Data=C$11,ROW(Data)),ROW(3:3))-PočátečníŘádekTabulky,4),\"\")","v":""},null,null,{"$f":"IFERROR(INDEX(tblEvents[],SMALL(IF(Data=F$11,ROW(Data)),ROW(3:3))-PočátečníŘádekTabulky,4),\"\")","v":""},null,null,{"$f":"IFERROR(INDEX(tblEvents[],SMALL(IF(Data=I$11,ROW(Data)),ROW(3:3))-PočátečníŘádekTabulky,4),\"\")","v":""},null,null,{"$f":"IFERROR(INDEX(tblEvents[],SMALL(IF(Data=L$11,ROW(Data)),ROW(3:3))-PočátečníŘádekTabulky,4),\"\")","v":""},null,null,{"$f":"IFERROR(INDEX(tblEvents[],SMALL(IF(Data=O$11,ROW(Data)),ROW(3:3))-PočátečníŘádekTabulky,4),\"\")","v":""},null,null,{"$f":"IFERROR(INDEX(tblEvents[],SMALL(IF(Data=R$11,ROW(Data)),ROW(3:3))-PočátečníŘádekTabulky,4),\"\")","v":""},null,null,{"$f":"IFERROR(INDEX(tblEvents[],SMALL(IF(Data=U$11,ROW(Data)),ROW(3:3))-PočátečníŘádekTabulky,4),\"\")","v":""}]
[null,null,{"$f":"IFERROR(INDEX(tblEvents[],SMALL(IF(Data=C$11,ROW(Data)),ROW(4:4))-PočátečníŘádekTabulky,4),\"\")","v":""},null,null,{"$f":"IFERROR(INDEX(tblEvents[],SMALL(IF(Data=F$11,ROW(Data)),ROW(4:4))-PočátečníŘádekTabulky,4),\"\")","v":""},null,null,{"$f":"IFERROR(INDEX(tblEvents[],SMALL(IF(Data=I$11,ROW(Data)),ROW(4:4))-PočátečníŘádekTabulky,4),\"\")","v":""},null,null,{"$f":"IFERROR(INDEX(tblEvents[],SMALL(IF(Data=L$11,ROW(Data)),ROW(4:4))-PočátečníŘádekTabulky,4),\"\")","v":""},null,null,{"$f":"IFERROR(INDEX(tblEvents[],SMALL(IF(Data=O$11,ROW(Data)),ROW(4:4))-PočátečníŘádekTabulky,4),\"\")","v":""},null,null,{"$f":"IFERROR(INDEX(tblEvents[],SMALL(IF(Data=R$11,ROW(Data)),ROW(4:4))-PočátečníŘádekTabulky,4),\"\")","v":""},null,null,{"$f":"IFERROR(INDEX(tblEvents[],SMALL(IF(Data=U$11,ROW(Data)),ROW(4:4))-PočátečníŘádekTabulky,4),\"\")","v":""}]
[null,null,{"$f":"U11+1","v":"2016-07-11"},null,null,{"$f":"C16+1","v":"2016-07-12"},null,null,{"$f":"F16+1","v":"2016-07-13"},null,null,{"$f":"I16+1","v":"2016-07-14"},null,null,{"$f":"L16+1","v":"2016-07-15"},null,null,{"$f":"O16+1","v":"2016-07-16"},null,null,{"$f":"R16+1","v":"2016-07-17"}]
[null,null,{"$f":"IFERROR(INDEX(tblEvents[],SMALL(IF(Data=C$16,ROW(Data)),ROW(1:1))-PočátečníŘádekTabulky,4),\"\")","v":"Obchodní komora – pracovní oběd"},null,null,{"$f":"IFERROR(INDEX(tblEvents[],SMALL(IF(Data=F$16,ROW(Data)),ROW(1:1))-PočátečníŘádekTabulky,4),\"\")","v":"Výstava starožitností"},null,null,{"$f":"IFERROR(INDEX(tblEvents[],SMALL(IF(Data=I$16,ROW(Data)),ROW(1:1))-PočátečníŘádekTabulky,4),\"\")","v":""},null,null,{"$f":"IFERROR(INDEX(tblEvents[],SMALL(IF(Data=L$16,ROW(Data)),ROW(1:1))-PočátečníŘádekTabulky,4),\"\")","v":"Obecní workshop"},null,null,{"$f":"IFERROR(INDEX(tblEvents[],SMALL(IF(Data=O$16,ROW(Data)),ROW(1:1))-PočátečníŘádekTabulky,4),\"\")","v":"Městská rada"},null,null,{"$f":"IFERROR(INDEX(tblEvents[],SMALL(IF(Data=R$16,ROW(Data)),ROW(1:1))-PočátečníŘádekTabulky,4),\"\")","v":""},null,null,{"$f":"IFERROR(INDEX(tblEvents[],SMALL(IF(Data=U$16,ROW(Data)),ROW(1:1))-PočátečníŘádekTabulky,4),\"\")","v":""}]
[null,null,{"$f":"IFERROR(INDEX(tblEvents[],SMALL(IF(Data=C$16,ROW(Data)),ROW(2:2))-PočátečníŘádekTabulky,4),\"\")","v":""},null,null,{"$f":"IFERROR(INDEX(tblEvents[],SMALL(IF(Data=F$16,ROW(Data)),ROW(2:2))-PočátečníŘádekTabulky,4),\"\")","v":""},null,null,{"$f":"IFERROR(INDEX(tblEvents[],SMALL(IF(Data=I$16,ROW(Data)),ROW(2:2))-PočátečníŘádekTabulky,4),\"\")","v":""},null,null,{"$f":"IFERROR(INDEX(tblEvents[],SMALL(IF(Data=L$16,ROW(Data)),ROW(2:2))-PočátečníŘádekTabulky,4),\"\")","v":""},null,null,{"$f":"IFERROR(INDEX(tblEvents[],SMALL(IF(Data=O$16,ROW(Data)),ROW(2:2))-PočátečníŘádekTabulky,4),\"\")","v":""},null,null,{"$f":"IFERROR(INDEX(tblEvents[],SMALL(IF(Data=R$16,ROW(Data)),ROW(2:2))-PočátečníŘádekTabulky,4),\"\")","v":""},null,null,{"$f":"IFERROR(INDEX(tblEvents[],SMALL(IF(Data=U$16,ROW(Data)),ROW(2:2))-PočátečníŘádekTabulky,4),\"\")","v":""}]
[null,null,{"$f":"IFERROR(INDEX(tblEvents[],SMALL(IF(Data=C$16,ROW(Data)),ROW(3:3))-PočátečníŘádekTabulky,4),\"\")","v":""},null,null,{"$f":"IFERROR(INDEX(tblEvents[],SMALL(IF(Data=F$16,ROW(Data)),ROW(3:3))-PočátečníŘádekTabulky,4),\"\")","v":""},null,null,{"$f":"IFERROR(INDEX(tblEvents[],SMALL(IF(Data=I$16,ROW(Data)),ROW(3:3))-PočátečníŘádekTabulky,4),\"\")","v":""},null,null,{"$f":"IFERROR(INDEX(tblEvents[],SMALL(IF(Data=L$16,ROW(Data)),ROW(3:3))-PočátečníŘádekTabulky,4),\"\")","v":""},null,null,{"$f":"IFERROR(INDEX(tblEvents[],SMALL(IF(Data=O$16,ROW(Data)),ROW(3:3))-PočátečníŘádekTabulky,4),\"\")","v":""},null,null,{"$f":"IFERROR(INDEX(tblEvents[],SMALL(IF(Data=R$16,ROW(Data)),ROW(3:3))-PočátečníŘádekTabulky,4),\"\")","v":""},null,null,{"$f":"IFERROR(INDEX(tblEvents[],SMALL(IF(Data=U$16,ROW(Data)),ROW(3:3))-PočátečníŘádekTabulky,4),\"\")","v":""}]
[null,null,{"$f":"IFERROR(INDEX(tblEvents[],SMALL(IF(Data=C$16,ROW(Data)),ROW(4:4))-PočátečníŘádekTabulky,4),\"\")","v":""},null,null,{"$f":"IFERROR(INDEX(tblEvents[],SMALL(IF(Data=F$16,ROW(Data)),ROW(4:4))-PočátečníŘádekTabulky,4),\"\")","v":""},null,null,{"$f":"IFERROR(INDEX(tblEvents[],SMALL(IF(Data=I$16,ROW(Data)),ROW(4:4))-PočátečníŘádekTabulky,4),\"\")","v":""},null,null,{"$f":"IFERROR(INDEX(tblEvents[],SMALL(IF(Data=L$16,ROW(Data)),ROW(4:4))-PočátečníŘádekTabulky,4),\"\")","v":""},null,null,{"$f":"IFERROR(INDEX(tblEvents[],SMALL(IF(Data=O$16,ROW(Data)),ROW(4:4))-PočátečníŘádekTabulky,4),\"\")","v":""},null,null,{"$f":"IFERROR(INDEX(tblEvents[],SMALL(IF(Data=R$16,ROW(Data)),ROW(4:4))-PočátečníŘádekTabulky,4),\"\")","v":""},null,null,{"$f":"IFERROR(INDEX(tblEvents[],SMALL(IF(Data=U$16,ROW(Data)),ROW(4:4))-PočátečníŘádekTabulky,4),\"\")","v":""}]
[null,null,{"$f":"U16+1","v":"2016-07-18"},null,null,{"$f":"C21+1","v":"2016-07-19"},null,null,{"$f":"F21+1","v":"2016-07-20"},null,null,{"$f":"I21+1","v":"2016-07-21"},null,null,{"$f":"L21+1","v":"2016-07-22"},null,null,{"$f":"O21+1","v":"2016-07-23"},null,null,{"$f":"R21+1","v":"2016-07-24"}]
[null,null,{"$f":"IFERROR(INDEX(tblEvents[],SMALL(IF(Data=C$21,ROW(Data)),ROW(1:1))-PočátečníŘádekTabulky,4),\"\")","v":""},null,null,{"$f":"IFERROR(INDEX(tblEvents[],SMALL(IF(Data=F$21,ROW(Data)),ROW(1:1))-PočátečníŘádekTabulky,4),\"\")","v":"Seminář strategického plánování"},null,null,{"$f":"IFERROR(INDEX(tblEvents[],SMALL(IF(Data=I$21,ROW(Data)),ROW(1:1))-PočátečníŘádekTabulky,4),\"\")","v":"Čištění parkoviště"},null,null,{"$f":"IFERROR(INDEX(tblEvents[],SMALL(IF(Data=L$21,ROW(Data)),ROW(1:1))-PočátečníŘádekTabulky,4),\"\")","v":""},null,null,{"$f":"IFERROR(INDEX(tblEvents[],SMALL(IF(Data=O$21,ROW(Data)),ROW(1:1))-PočátečníŘádekTabulky,4),\"\")","v":"Městská rada"},null,null,{"$f":"IFERROR(INDEX(tblEvents[],SMALL(IF(Data=R$21,ROW(Data)),ROW(1:1))-PočátečníŘádekTabulky,4),\"\")","v":""},null,null,{"$f":"IFERROR(INDEX(tblEvents[],SMALL(IF(Data=U$21,ROW(Data)),ROW(1:1))-PočátečníŘádekTabulky,4),\"\")","v":""}]
[null,null,{"$f":"IFERROR(INDEX(tblEvents[],SMALL(IF(Data=C$21,ROW(Data)),ROW(2:2))-PočátečníŘádekTabulky,4),\"\")","v":""},null,null,{"$f":"IFERROR(INDEX(tblEvents[],SMALL(IF(Data=F$21,ROW(Data)),ROW(2:2))-PočátečníŘádekTabulky,4),\"\")","v":""},null,null,{"$f":"IFERROR(INDEX(tblEvents[],SMALL(IF(Data=I$21,ROW(Data)),ROW(2:2))-PočátečníŘádekTabulky,4),\"\")","v":""},null,null,{"$f":"IFERROR(INDEX(tblEvents[],SMALL(IF(Data=L$21,ROW(Data)),ROW(2:2))-PočátečníŘádekTabulky,4),\"\")","v":""},null,null,{"$f":"IFERROR(INDEX(tblEvents[],SMALL(IF(Data=O$21,ROW(Data)),ROW(2:2))-PočátečníŘádekTabulky,4),\"\")","v":""},null,null,{"$f":"IFERROR(INDEX(tblEvents[],SMALL(IF(Data=R$21,ROW(Data)),ROW(2:2))-PočátečníŘádekTabulky,4),\"\")","v":""},null,null,{"$f":"IFERROR(INDEX(tblEvents[],SMALL(IF(Data=U$21,ROW(Data)),ROW(2:2))-PočátečníŘádekTabulky,4),\"\")","v":""}]
[null,null,{"$f":"IFERROR(INDEX(tblEvents[],SMALL(IF(Data=C$21,ROW(Data)),ROW(3:3))-PočátečníŘádekTabulky,4),\"\")","v":""},null,null,{"$f":"IFERROR(INDEX(tblEvents[],SMALL(IF(Data=F$21,ROW(Data)),ROW(3:3))-PočátečníŘádekTabulky,4),\"\")","v":""},null,null,{"$f":"IFERROR(INDEX(tblEvents[],SMALL(IF(Data=I$21,ROW(Data)),ROW(3:3))-PočátečníŘádekTabulky,4),\"\")","v":""},null,null,{"$f":"IFERROR(INDEX(tblEvents[],SMALL(IF(Data=L$21,ROW(Data)),ROW(3:3))-PočátečníŘádekTabulky,4),\"\")","v":""},null,null,{"$f":"IFERROR(INDEX(tblEvents[],SMALL(IF(Data=O$21,ROW(Data)),ROW(3:3))-PočátečníŘádekTabulky,4),\"\")","v":""},null,null,{"$f":"IFERROR(INDEX(tblEvents[],SMALL(IF(Data=R$21,ROW(Data)),ROW(3:3))-PočátečníŘádekTabulky,4),\"\")","v":""},null,null,{"$f":"IFERROR(INDEX(tblEvents[],SMALL(IF(Data=U$21,ROW(Data)),ROW(3:3))-PočátečníŘádekTabulky,4),\"\")","v":""}]
[null,null,{"$f":"IFERROR(INDEX(tblEvents[],SMALL(IF(Data=C$21,ROW(Data)),ROW(4:4))-PočátečníŘádekTabulky,4),\"\")","v":""},null,null,{"$f":"IFERROR(INDEX(tblEvents[],SMALL(IF(Data=F$21,ROW(Data)),ROW(4:4))-PočátečníŘádekTabulky,4),\"\")","v":""},null,null,{"$f":"IFERROR(INDEX(tblEvents[],SMALL(IF(Data=I$21,ROW(Data)),ROW(4:4))-PočátečníŘádekTabulky,4),\"\")","v":""},null,null,{"$f":"IFERROR(INDEX(tblEvents[],SMALL(IF(Data=L$21,ROW(Data)),ROW(4:4))-PočátečníŘádekTabulky,4),\"\")","v":""},null,null,{"$f":"IFERROR(INDEX(tblEvents[],SMALL(IF(Data=O$21,ROW(Data)),ROW(4:4))-PočátečníŘádekTabulky,4),\"\")","v":""},null,null,{"$f":"IFERROR(INDEX(tblEvents[],SMALL(IF(Data=R$21,ROW(Data)),ROW(4:4))-PočátečníŘádekTabulky,4),\"\")","v":""},null,null,{"$f":"IFERROR(INDEX(tblEvents[],SMALL(IF(Data=U$21,ROW(Data)),ROW(4:4))-PočátečníŘádekTabulky,4),\"\")","v":""}]
[null,null,{"$f":"U21+1","v":"2016-07-25"},null,null,{"$f":"C26+1","v":"2016-07-26"},null,null,{"$f":"F26+1","v":"2016-07-27"},null,null,{"$f":"I26+1","v":"2016-07-28"},null,null,{"$f":"L26+1","v":"2016-07-29"},null,null,{"$f":"O26+1","v":"2016-07-30"},null,null,{"$f":"R26+1","v":"2016-07-31"}]
[null,null,{"$f":"IFERROR(INDEX(tblEvents[],SMALL(IF(Data=C$26,ROW(Data)),ROW(1:1))-PočátečníŘádekTabulky,4),\"\")","v":""},null,null,{"$f":"IFERROR(INDEX(tblEvents[],SMALL(IF(Data=F$26,ROW(Data)),ROW(1:1))-PočátečníŘádekTabulky,4),\"\")","v":"Procházka v centru"},null,null,{"$f":"IFERROR(INDEX(tblEvents[],SMALL(IF(Data=I$26,ROW(Data)),ROW(1:1))-PočátečníŘádekTabulky,4),\"\")","v":""},null,null,{"$f":"IFERROR(INDEX(tblEvents[],SMALL(IF(Data=L$26,ROW(Data)),ROW(1:1))-PočátečníŘádekTabulky,4),\"\")","v":""},null,null,{"$f":"IFERROR(INDEX(tblEvents[],SMALL(IF(Data=O$26,ROW(Data)),ROW(1:1))-PočátečníŘádekTabulky,4),\"\")","v":"Městská rada"},null,null,{"$f":"IFERROR(INDEX(tblEvents[],SMALL(IF(Data=R$26,ROW(Data)),ROW(1:1))-PočátečníŘádekTabulky,4),\"\")","v":""},null,null,{"$f":"IFERROR(INDEX(tblEvents[],SMALL(IF(Data=U$26,ROW(Data)),ROW(1:1))-PočátečníŘádekTabulky,4),\"\")","v":""}]
[null,null,{"$f":"IFERROR(INDEX(tblEvents[],SMALL(IF(Data=C$26,ROW(Data)),ROW(2:2))-PočátečníŘádekTabulky,4),\"\")","v":""},null,null,{"$f":"IFERROR(INDEX(tblEvents[],SMALL(IF(Data=F$26,ROW(Data)),ROW(2:2))-PočátečníŘádekTabulky,4),\"\")","v":"Návštěva pivnic"},null,null,{"$f":"IFERROR(INDEX(tblEvents[],SMALL(IF(Data=I$26,ROW(Data)),ROW(2:2))-PočátečníŘádekTabulky,4),\"\")","v":""},null,null,{"$f":"IFERROR(INDEX(tblEvents[],SMALL(IF(Data=L$26,ROW(Data)),ROW(2:2))-PočátečníŘádekTabulky,4),\"\")","v":""},null,null,{"$f":"IFERROR(INDEX(tblEvents[],SMALL(IF(Data=O$26,ROW(Data)),ROW(2:2))-PočátečníŘádekTabulky,4),\"\")","v":""},null,null,{"$f":"IFERROR(INDEX(tblEvents[],SMALL(IF(Data=R$26,ROW(Data)),ROW(2:2))-PočátečníŘádekTabulky,4),\"\")","v":""},null,null,{"$f":"IFERROR(INDEX(tblEvents[],SMALL(IF(Data=U$26,ROW(Data)),ROW(2:2))-PočátečníŘádekTabulky,4),\"\")","v":""}]
[null,null,{"$f":"IFERROR(INDEX(tblEvents[],SMALL(IF(Data=C$26,ROW(Data)),ROW(3:3))-PočátečníŘádekTabulky,4),\"\")","v":""},null,null,{"$f":"IFERROR(INDEX(tblEvents[],SMALL(IF(Data=F$26,ROW(Data)),ROW(3:3))-PočátečníŘádekTabulky,4),\"\")","v":""},null,null,{"$f":"IFERROR(INDEX(tblEvents[],SMALL(IF(Data=I$26,ROW(Data)),ROW(3:3))-PočátečníŘádekTabulky,4),\"\")","v":""},null,null,{"$f":"IFERROR(INDEX(tblEvents[],SMALL(IF(Data=L$26,ROW(Data)),ROW(3:3))-PočátečníŘádekTabulky,4),\"\")","v":""},null,null,{"$f":"IFERROR(INDEX(tblEvents[],SMALL(IF(Data=O$26,ROW(Data)),ROW(3:3))-PočátečníŘádekTabulky,4),\"\")","v":""},null,null,{"$f":"IFERROR(INDEX(tblEvents[],SMALL(IF(Data=R$26,ROW(Data)),ROW(3:3))-PočátečníŘádekTabulky,4),\"\")","v":""},null,null,{"$f":"IFERROR(INDEX(tblEvents[],SMALL(IF(Data=U$26,ROW(Data)),ROW(3:3))-PočátečníŘádekTabulky,4),\"\")","v":""}]
[null,null,{"$f":"IFERROR(INDEX(tblEvents[],SMALL(IF(Data=C$26,ROW(Data)),ROW(4:4))-PočátečníŘádekTabulky,4),\"\")","v":""},null,null,{"$f":"IFERROR(INDEX(tblEvents[],SMALL(IF(Data=F$26,ROW(Data)),ROW(4:4))-PočátečníŘádekTabulky,4),\"\")","v":""},null,null,{"$f":"IFERROR(INDEX(tblEvents[],SMALL(IF(Data=I$26,ROW(Data)),ROW(4:4))-PočátečníŘádekTabulky,4),\"\")","v":""},null,null,{"$f":"IFERROR(INDEX(tblEvents[],SMALL(IF(Data=L$26,ROW(Data)),ROW(4:4))-PočátečníŘádekTabulky,4),\"\")","v":""},null,null,{"$f":"IFERROR(INDEX(tblEvents[],SMALL(IF(Data=O$26,ROW(Data)),ROW(4:4))-PočátečníŘádekTabulky,4),\"\")","v":""},null,null,{"$f":"IFERROR(INDEX(tblEvents[],SMALL(IF(Data=R$26,ROW(Data)),ROW(4:4))-PočátečníŘádekTabulky,4),\"\")","v":""},null,null,{"$f":"IFERROR(INDEX(tblEvents[],SMALL(IF(Data=U$26,ROW(Data)),ROW(4:4))-PočátečníŘádekTabulky,4),\"\")","v":""}]
[null,null,{"$f":"U26+1","v":"2016-08-01"},null,null,{"$f":"C31+1","v":"2016-08-02"},null,null,"POZNÁMKY:"]
[null,null,{"$f":"IFERROR(INDEX(tblEvents[],SMALL(IF(Data=C$31,ROW(Data)),ROW(1:1))-PočátečníŘádekTabulky,4),\"\")","v":""},null,null,{"$f":"IFERROR(INDEX(tblEvents[],SMALL(IF(Data=F$31,ROW(Data)),ROW(1:1))-PočátečníŘádekTabulky,4),\"\")","v":""}]
[null,null,{"$f":"IFERROR(INDEX(tblEvents[],SMALL(IF(Data=C$31,ROW(Data)),ROW(2:2))-PočátečníŘádekTabulky,4),\"\")","v":""},null,null,{"$f":"IFERROR(INDEX(tblEvents[],SMALL(IF(Data=F$31,ROW(Data)),ROW(2:2))-PočátečníŘádekTabulky,4),\"\")","v":""}]
[null,null,{"$f":"IFERROR(INDEX(tblEvents[],SMALL(IF(Data=C$31,ROW(Data)),ROW(3:3))-PočátečníŘádekTabulky,4),\"\")","v":""},null,null,{"$f":"IFERROR(INDEX(tblEvents[],SMALL(IF(Data=F$31,ROW(Data)),ROW(3:3))-PočátečníŘádekTabulky,4),\"\")","v":""}]
[null,null,{"$f":"IFERROR(INDEX(tblEvents[],SMALL(IF(Data=C$31,ROW(Data)),ROW(4:4))-PočátečníŘádekTabulky,4),\"\")","v":""},null,null,{"$f":"IFERROR(INDEX(tblEvents[],SMALL(IF(Data=F$31,ROW(Data)),ROW(4:4))-PočátečníŘádekTabulky,4),\"\")","v":""}]

{"sheet":"VERZE PRO TISK","index":2,"n_rows":35,"n_cols":21,"rows_kept":35,"merged":[[1,5,1,11],[30,8,34,20]]}
[]
[null,null,{"$f":"ZobrazitRok","v":2016},null,null,{"$f":"ZobrazitMěsíc","v":"ČERVENEC"},0,0,0,0,0,0]
[]
[null,null,"PO",null,null,"ÚT",null,null,"ST",null,null,"ČT",null,null,"PÁ",null,null,"SO",null,null,"NE"]
[]
[null,null,{"$f":"KALENDÁŘ!C6","v":"2016-06-27"},{"$f":"KALENDÁŘ!D6","v":0},{"$f":"KALENDÁŘ!E6","v":0},{"$f":"KALENDÁŘ!F6","v":"2016-06-28"},{"$f":"KALENDÁŘ!G6","v":0},{"$f":"KALENDÁŘ!H6","v":0},{"$f":"KALENDÁŘ!I6","v":"2016-06-29"},{"$f":"KALENDÁŘ!J6","v":0},{"$f":"KALENDÁŘ!K6","v":0},{"$f":"KALENDÁŘ!L6","v":"2016-06-30"},{"$f":"KALENDÁŘ!M6","v":0},{"$f":"KALENDÁŘ!N6","v":0},{"$f":"KALENDÁŘ!O6","v":"2016-07-01"},{"$f":"KALENDÁŘ!P6","v":0},{"$f":"KALENDÁŘ!Q6","v":0},{"$f":"KALENDÁŘ!R6","v":"2016-07-02"},{"$f":"KALENDÁŘ!S6","v":0},{"$f":"KALENDÁŘ!T6","v":0},{"$f":"KALENDÁŘ!U6","v":"2016-07-03"}]
[null,null,{"$f":"KALENDÁŘ!C7","v":""},{"$f":"KALENDÁŘ!D7","v":0},{"$f":"KALENDÁŘ!E7","v":0},{"$f":"KALENDÁŘ!F7","v":""},{"$f":"KALENDÁŘ!G7","v":0},{"$f":"KALENDÁŘ!H7","v":0},{"$f":"KALENDÁŘ!I7","v":""},{"$f":"KALENDÁŘ!J7","v":0},{"$f":"KALENDÁŘ!K7","v":0},{"$f":"KALENDÁŘ!L7","v":""},{"$f":"KALENDÁŘ!M7","v":0},{"$f":"KALENDÁŘ!N7","v":0},{"$f":"KALENDÁŘ!O7","v":"Obecní zeleň"},{"$f":"KALENDÁŘ!P7","v":0},{"$f":"KALENDÁŘ!Q7","v":0},{"$f":"KALENDÁŘ!R7","v":"Obecní zeleň"},{"$f":"KALENDÁŘ!S7","v":0},{"$f":"KALENDÁŘ!T7","v":0},{"$f":"KALENDÁŘ!U7","v":"Letní kino v parku"}]
[null,null,{"$f":"KALENDÁŘ!C8","v":""},{"$f":"KALENDÁŘ!D8","v":"00:00:00"},{"$f":"KALENDÁŘ!E8","v":"00:00:00"},{"$f":"KALENDÁŘ!F8","v":""},{"$f":"KALENDÁŘ!G8","v":"00:00:00"},{"$f":"KALENDÁŘ!H8","v":"00:00:00"},{"$f":"KALENDÁŘ!I8","v":""},{"$f":"KALENDÁŘ!J8","v":"00:00:00"},{"$f":"KALENDÁŘ!K8","v":"00:00:00"},{"$f":"KALENDÁŘ!L8","v":""},{"$f":"KALENDÁŘ!M8","v":"00:00:00"},{"$f":"KALENDÁŘ!N8","v":"00:00:00"},{"$f":"KALENDÁŘ!O8","v":"Městská rada"},{"$f":"KALENDÁŘ!P8","v":"00:00:00"},{"$f":"KALENDÁŘ!Q8","v":"00:00:00"},{"$f":"KALENDÁŘ!R8","v":""},{"$f":"KALENDÁŘ!S8","v":"00:00:00"},{"$f":"KALENDÁŘ!T8","v":"00:00:00"},{"$f":"KALENDÁŘ!U8","v":""}]
[null,null,{"$f":"KALENDÁŘ!C9","v":""},{"$f":"KALENDÁŘ!D9","v":0},{"$f":"KALENDÁŘ!E9","v":0},{"$f":"KALENDÁŘ!F9","v":""},{"$f":"KALENDÁŘ!G9","v":0},{"$f":"KALENDÁŘ!H9","v":0},{"$f":"KALENDÁŘ!I9","v":""},{"$f":"KALENDÁŘ!J9","v":0},{"$f":"KALENDÁŘ!K9","v":0},{"$f":"KALENDÁŘ!L9","v":""},{"$f":"KALENDÁŘ!M9","v":0},{"$f":"KALENDÁŘ!N9","v":0},{"$f":"KALENDÁŘ!O9","v":""},{"$f":"KALENDÁŘ!P9","v":0},{"$f":"KALENDÁŘ!Q9","v":0},{"$f":"KALENDÁŘ!R9","v":""},{"$f":"KALENDÁŘ!S9","v":0},{"$f":"KALENDÁŘ!T9","v":0},{"$f":"KALENDÁŘ!U9","v":""}]
[null,null,{"$f":"KALENDÁŘ!C10","v":""},{"$f":"KALENDÁŘ!D10","v":0},{"$f":"KALENDÁŘ!E10","v":0},{"$f":"KALENDÁŘ!F10","v":""},{"$f":"KALENDÁŘ!G10","v":0},{"$f":"KALENDÁŘ!H10","v":0},{"$f":"KALENDÁŘ!I10","v":""},{"$f":"KALENDÁŘ!J10","v":0},{"$f":"KALENDÁŘ!K10","v":0},{"$f":"KALENDÁŘ!L10","v":""},{"$f":"KALENDÁŘ!M10","v":0},{"$f":"KALENDÁŘ!N10","v":0},{"$f":"KALENDÁŘ!O10","v":""},{"$f":"KALENDÁŘ!P10","v":0},{"$f":"KALENDÁŘ!Q10","v":0},{"$f":"KALENDÁŘ!R10","v":""},{"$f":"KALENDÁŘ!S10","v":0},{"$f":"KALENDÁŘ!T10","v":0},{"$f":"KALENDÁŘ!U10","v":""}]
[null,null,{"$f":"KALENDÁŘ!C11","v":"2016-07-04"},{"$f":"KALENDÁŘ!D11","v":0},{"$f":"KALENDÁŘ!E11","v":0},{"$f":"KALENDÁŘ!F11","v":"2016-07-05"},{"$f":"KALENDÁŘ!G11","v":0},{"$f":"KALENDÁŘ!H11","v":0},{"$f":"KALENDÁŘ!I11","v":"2016-07-06"},{"$f":"KALENDÁŘ!J11","v":0},{"$f":"KALENDÁŘ!K11","v":0},{"$f":"KALENDÁŘ!L11","v":"2016-07-07"},{"$f":"KALENDÁŘ!M11","v":0},{"$f":"KALENDÁŘ!N11","v":0},{"$f":"KALENDÁŘ!O11","v":"2016-07-08"},{"$f":"KALENDÁŘ!P11","v":0},{"$f":"KALENDÁŘ!Q11","v":0},{"$f":"KALENDÁŘ!R11","v":"2016-07-09"},{"$f":"KALENDÁŘ!S11","v":0},{"$f":"KALENDÁŘ!T11","v":0},{"$f":"KALENDÁŘ!U11","v":"2016-07-10"}]
[null,null,{"$f":"KALENDÁŘ!C12","v":""},{"$f":"KALENDÁŘ!D12","v":0},{"$f":"KALENDÁŘ!E12","v":0},{"$f":"KALENDÁŘ!F12","v":""},{"$f":"KALENDÁŘ!G12","v":0},{"$f":"KALENDÁŘ!H12","v":0},{"$f":"KALENDÁŘ!I12","v":""},{"$f":"KALENDÁŘ!J12","v":0},{"$f":"KALENDÁŘ!K12","v":0},{"$f":"KALENDÁŘ!L12","v":""},{"$f":"KALENDÁŘ!M12","v":0},{"$f":"KALENDÁŘ!N12","v":0},{"$f":"KALENDÁŘ!O12","v":"Městská rada"},{"$f":"KALENDÁŘ!P12","v":0},{"$f":"KALENDÁŘ!Q12","v":0},{"$f":"KALENDÁŘ!R12","v":""},{"$f":"KALENDÁŘ!S12","v":0},{"$f":"KALENDÁŘ!T12","v":0},{"$f":"KALENDÁŘ!U12","v":""}]
[null,null,{"$f":"KALENDÁŘ!C13","v":""},{"$f":"KALENDÁŘ!D13","v":0},{"$f":"KALENDÁŘ!E13","v":0},{"$f":"KALENDÁŘ!F13","v":""},{"$f":"KALENDÁŘ!G13","v":0},{"$f":"KALENDÁŘ!H13","v":0},{"$f":"KALENDÁŘ!I13","v":""},{"$f":"KALENDÁŘ!J13","v":0},{"$f":"KALENDÁŘ!K13","v":0},{"$f":"KALENDÁŘ!L13","v":""},{"$f":"KALENDÁŘ!M13","v":0},{"$f":"KALENDÁŘ!N13","v":0},{"$f":"KALENDÁŘ!O13","v":""},{"$f":"KALENDÁŘ!P13","v":0},{"$f":"KALENDÁŘ!Q13","v":0},{"$f":"KALENDÁŘ!R13","v":""},{"$f":"KALENDÁŘ!S13","v":0},{"$f":"KALENDÁŘ!T13","v":0},{"$f":"KALENDÁŘ!U13","v":""}]
[null,null,{"$f":"KALENDÁŘ!C14","v":""},{"$f":"KALENDÁŘ!D14","v":0},{"$f":"KALENDÁŘ!E14","v":0},{"$f":"KALENDÁŘ!F14","v":""},{"$f":"KALENDÁŘ!G14","v":0},{"$f":"KALENDÁŘ!H14","v":0},{"$f":"KALENDÁŘ!I14","v":""},{"$f":"KALENDÁŘ!J14","v":0},{"$f":"KALENDÁŘ!K14","v":0},{"$f":"KALENDÁŘ!L14","v":""},{"$f":"KALENDÁŘ!M14","v":0},{"$f":"KALENDÁŘ!N14","v":0},{"$f":"KALENDÁŘ!O14","v":""},{"$f":"KALENDÁŘ!P14","v":0},{"$f":"KALENDÁŘ!Q14","v":0},{"$f":"KALENDÁŘ!R14","v":""},{"$f":"KALENDÁŘ!S14","v":0},{"$f":"KALENDÁŘ!T14","v":0},{"$f":"KALENDÁŘ!U14","v":""}]
[null,null,{"$f":"KALENDÁŘ!C15","v":""},{"$f":"KALENDÁŘ!D15","v":0},{"$f":"KALENDÁŘ!E15","v":0},{"$f":"KALENDÁŘ!F15","v":""},{"$f":"KALENDÁŘ!G15","v":0},{"$f":"KALENDÁŘ!H15","v":0},{"$f":"KALENDÁŘ!I15","v":""},{"$f":"KALENDÁŘ!J15","v":0},{"$f":"KALENDÁŘ!K15","v":0},{"$f":"KALENDÁŘ!L15","v":""},{"$f":"KALENDÁŘ!M15","v":0},{"$f":"KALENDÁŘ!N15","v":0},{"$f":"KALENDÁŘ!O15","v":""},{"$f":"KALENDÁŘ!P15","v":0},{"$f":"KALENDÁŘ!Q15","v":0},{"$f":"KALENDÁŘ!R15","v":""},{"$f":"KALENDÁŘ!S15","v":0},{"$f":"KALENDÁŘ!T15","v":0},{"$f":"KALENDÁŘ!U15","v":""}]
[null,null,{"$f":"KALENDÁŘ!C16","v":"2016-07-11"},{"$f":"KALENDÁŘ!D16","v":0},{"$f":"KALENDÁŘ!E16","v":0},{"$f":"KALENDÁŘ!F16","v":"2016-07-12"},{"$f":"KALENDÁŘ!G16","v":0},{"$f":"KALENDÁŘ!H16","v":0},{"$f":"KALENDÁŘ!I16","v":"2016-07-13"},{"$f":"KALENDÁŘ!J16","v":0},{"$f":"KALENDÁŘ!K16","v":0},{"$f":"KALENDÁŘ!L16","v":"2016-07-14"},{"$f":"KALENDÁŘ!M16","v":0},{"$f":"KALENDÁŘ!N16","v":0},{"$f":"KALENDÁŘ!O16","v":"2016-07-15"},{"$f":"KALENDÁŘ!P16","v":0},{"$f":"KALENDÁŘ!Q16","v":0},{"$f":"KALENDÁŘ!R16","v":"2016-07-16"},{"$f":"KALENDÁŘ!S16","v":0},{"$f":"KALENDÁŘ!T16","v":0},{"$f":"KALENDÁŘ!U16","v":"2016-07-17"}]
[null,null,{"$f":"KALENDÁŘ!C17","v":"Obchodní komora – pracovní oběd"},{"$f":"KALENDÁŘ!D17","v":0},{"$f":"KALENDÁŘ!E17","v":0},{"$f":"KALENDÁŘ!F17","v":"Výstava starožitností"},{"$f":"KALENDÁŘ!G17","v":0},{"$f":"KALENDÁŘ!H17","v":0},{"$f":"KALENDÁŘ!I17","v":""},{"$f":"KALENDÁŘ!J17","v":0},{"$f":"KALENDÁŘ!K17","v":0},{"$f":"KALENDÁŘ!L17","v":"Obecní workshop"},{"$f":"KALENDÁŘ!M17","v":0},{"$f":"KALENDÁŘ!N17","v":0},{"$f":"KALENDÁŘ!O17","v":"Městská rada"},{"$f":"KALENDÁŘ!P17","v":0},{"$f":"KALENDÁŘ!Q17","v":0},{"$f":"KALENDÁŘ!R17","v":""},{"$f":"KALENDÁŘ!S17","v":0},{"$f":"KALENDÁŘ!T17","v":0},{"$f":"KALENDÁŘ!U17","v":""}]
[null,null,{"$f":"KALENDÁŘ!C18","v":""},{"$f":"KALENDÁŘ!D18","v":0},{"$f":"KALENDÁŘ!E18","v":0},{"$f":"KALENDÁŘ!F18","v":""},{"$f":"KALENDÁŘ!G18","v":0},{"$f":"KALENDÁŘ!H18","v":0},{"$f":"KALENDÁŘ!I18","v":""},{"$f":"KALENDÁŘ!J18","v":0},{"$f":"KALENDÁŘ!K18","v":0},{"$f":"KALENDÁŘ!L18","v":""},{"$f":"KALENDÁŘ!M18","v":0},{"$f":"KALENDÁŘ!N18","v":0},{"$f":"KALENDÁŘ!O18","v":""},{"$f":"KALENDÁŘ!P18","v":0},{"$f":"KALENDÁŘ!Q18","v":0},{"$f":"KALENDÁŘ!R18","v":""},{"$f":"KALENDÁŘ!S18","v":0},{"$f":"KALENDÁŘ!T18","v":0},{"$f":"KALENDÁŘ!U18","v":""}]
[null,null,{"$f":"KALENDÁŘ!C19","v":""},{"$f":"KALENDÁŘ!D19","v":0},{"$f":"KALENDÁŘ!E19","v":0},{"$f":"KALENDÁŘ!F19","v":""},{"$f":"KALENDÁŘ!G19","v":0},{"$f":"KALENDÁŘ!H19","v":0},{"$f":"KALENDÁŘ!I19","v":""},{"$f":"KALENDÁŘ!J19","v":0},{"$f":"KALENDÁŘ!K19","v":0},{"$f":"KALENDÁŘ!L19","v":""},{"$f":"KALENDÁŘ!M19","v":0},{"$f":"KALENDÁŘ!N19","v":0},{"$f":"KALENDÁŘ!O19","v":""},{"$f":"KALENDÁŘ!P19","v":0},{"$f":"KALENDÁŘ!Q19","v":0},{"$f":"KALENDÁŘ!R19","v":""},{"$f":"KALENDÁŘ!S19","v":0},{"$f":"KALENDÁŘ!T19","v":0},{"$f":"KALENDÁŘ!U19","v":""}]
[null,null,{"$f":"KALENDÁŘ!C20","v":""},{"$f":"KALENDÁŘ!D20","v":0},{"$f":"KALENDÁŘ!E20","v":0},{"$f":"KALENDÁŘ!F20","v":""},{"$f":"KALENDÁŘ!G20","v":0},{"$f":"KALENDÁŘ!H20","v":0},{"$f":"KALENDÁŘ!I20","v":""},{"$f":"KALENDÁŘ!J20","v":0},{"$f":"KALENDÁŘ!K20","v":0},{"$f":"KALENDÁŘ!L20","v":""},{"$f":"KALENDÁŘ!M20","v":0},{"$f":"KALENDÁŘ!N20","v":0},{"$f":"KALENDÁŘ!O20","v":""},{"$f":"KALENDÁŘ!P20","v":0},{"$f":"KALENDÁŘ!Q20","v":0},{"$f":"KALENDÁŘ!R20","v":""},{"$f":"KALENDÁŘ!S20","v":0},{"$f":"KALENDÁŘ!T20","v":0},{"$f":"KALENDÁŘ!U20","v":""}]
[null,null,{"$f":"KALENDÁŘ!C21","v":"2016-07-18"},{"$f":"KALENDÁŘ!D21","v":0},{"$f":"KALENDÁŘ!E21","v":0},{"$f":"KALENDÁŘ!F21","v":"2016-07-19"},{"$f":"KALENDÁŘ!G21","v":0},{"$f":"KALENDÁŘ!H21","v":0},{"$f":"KALENDÁŘ!I21","v":"2016-07-20"},{"$f":"KALENDÁŘ!J21","v":0},{"$f":"KALENDÁŘ!K21","v":0},{"$f":"KALENDÁŘ!L21","v":"2016-07-21"},{"$f":"KALENDÁŘ!M21","v":0},{"$f":"KALENDÁŘ!N21","v":0},{"$f":"KALENDÁŘ!O21","v":"2016-07-22"},{"$f":"KALENDÁŘ!P21","v":0},{"$f":"KALENDÁŘ!Q21","v":0},{"$f":"KALENDÁŘ!R21","v":"2016-07-23"},{"$f":"KALENDÁŘ!S21","v":0},{"$f":"KALENDÁŘ!T21","v":0},{"$f":"KALENDÁŘ!U21","v":"2016-07-24"}]
[null,null,{"$f":"KALENDÁŘ!C22","v":""},{"$f":"KALENDÁŘ!D22","v":0},{"$f":"KALENDÁŘ!E22","v":0},{"$f":"KALENDÁŘ!F22","v":"Seminář strategického plánování"},{"$f":"KALENDÁŘ!G22","v":0},{"$f":"KALENDÁŘ!H22","v":0},{"$f":"KALENDÁŘ!I22","v":"Čištění parkoviště"},{"$f":"KALENDÁŘ!J22","v":0},{"$f":"KALENDÁŘ!K22","v":0},{"$f":"KALENDÁŘ!L22","v":""},{"$f":"KALENDÁŘ!M22","v":0},{"$f":"KALENDÁŘ!N22","v":0},{"$f":"KALENDÁŘ!O22","v":"Městská rada"},{"$f":"KALENDÁŘ!P22","v":0},{"$f":"KALENDÁŘ!Q22","v":0},{"$f":"KALENDÁŘ!R22","v":""},{"$f":"KALENDÁŘ!S22","v":0},{"$f":"KALENDÁŘ!T22","v":0},{"$f":"KALENDÁŘ!U22","v":""}]
[null,null,{"$f":"KALENDÁŘ!C23","v":""},{"$f":"KALENDÁŘ!D23","v":0},{"$f":"KALENDÁŘ!E23","v":0},{"$f":"KALENDÁŘ!F23","v":""},{"$f":"KALENDÁŘ!G23","v":0},{"$f":"KALENDÁŘ!H23","v":0},{"$f":"KALENDÁŘ!I23","v":""},{"$f":"KALENDÁŘ!J23","v":0},{"$f":"KALENDÁŘ!K23","v":0},{"$f":"KALENDÁŘ!L23","v":""},{"$f":"KALENDÁŘ!M23","v":0},{"$f":"KALENDÁŘ!N23","v":0},{"$f":"KALENDÁŘ!O23","v":""},{"$f":"KALENDÁŘ!P23","v":0},{"$f":"KALENDÁŘ!Q23","v":0},{"$f":"KALENDÁŘ!R23","v":""},{"$f":"KALENDÁŘ!S23","v":0},{"$f":"KALENDÁŘ!T23","v":0},{"$f":"KALENDÁŘ!U23","v":""}]
[null,null,{"$f":"KALENDÁŘ!C24","v":""},{"$f":"KALENDÁŘ!D24","v":0},{"$f":"KALENDÁŘ!E24","v":0},{"$f":"KALENDÁŘ!F24","v":""},{"$f":"KALENDÁŘ!G24","v":0},{"$f":"KALENDÁŘ!H24","v":0},{"$f":"KALENDÁŘ!I24","v":""},{"$f":"KALENDÁŘ!J24","v":0},{"$f":"KALENDÁŘ!K24","v":0},{"$f":"KALENDÁŘ!L24","v":""},{"$f":"KALENDÁŘ!M24","v":0},{"$f":"KALENDÁŘ!N24","v":0},{"$f":"KALENDÁŘ!O24","v":""},{"$f":"KALENDÁŘ!P24","v":0},{"$f":"KALENDÁŘ!Q24","v":0},{"$f":"KALENDÁŘ!R24","v":""},{"$f":"KALENDÁŘ!S24","v":0},{"$f":"KALENDÁŘ!T24","v":0},{"$f":"KALENDÁŘ!U24","v":""}]
[null,null,{"$f":"KALENDÁŘ!C25","v":""},{"$f":"KALENDÁŘ!D25","v":0},{"$f":"KALENDÁŘ!E25","v":0},{"$f":"KALENDÁŘ!F25","v":""},{"$f":"KALENDÁŘ!G25","v":0},{"$f":"KALENDÁŘ!H25","v":0},{"$f":"KALENDÁŘ!I25","v":""},{"$f":"KALENDÁŘ!J25","v":0},{"$f":"KALENDÁŘ!K25","v":0},{"$f":"KALENDÁŘ!L25","v":""},{"$f":"KALENDÁŘ!M25","v":0},{"$f":"KALENDÁŘ!N25","v":0},{"$f":"KALENDÁŘ!O25","v":""},{"$f":"KALENDÁŘ!P25","v":0},{"$f":"KALENDÁŘ!Q25","v":0},{"$f":"KALENDÁŘ!R25","v":""},{"$f":"KALENDÁŘ!S25","v":0},{"$f":"KALENDÁŘ!T25","v":0},{"$f":"KALENDÁŘ!U25","v":""}]
[null,null,{"$f":"KALENDÁŘ!C26","v":"2016-07-25"},{"$f":"KALENDÁŘ!D26","v":0},{"$f":"KALENDÁŘ!E26","v":0},{"$f":"KALENDÁŘ!F26","v":"2016-07-26"},{"$f":"KALENDÁŘ!G26","v":0},{"$f":"KALENDÁŘ!H26","v":0},{"$f":"KALENDÁŘ!I26","v":"2016-07-27"},{"$f":"KALENDÁŘ!J26","v":0},{"$f":"KALENDÁŘ!K26","v":0},{"$f":"KALENDÁŘ!L26","v":"2016-07-28"},{"$f":"KALENDÁŘ!M26","v":0},{"$f":"KALENDÁŘ!N26","v":0},{"$f":"KALENDÁŘ!O26","v":"2016-07-29"},{"$f":"KALENDÁŘ!P26","v":0},{"$f":"KALENDÁŘ!Q26","v":0},{"$f":"KALENDÁŘ!R26","v":"2016-07-30"},{"$f":"KALENDÁŘ!S26","v":0},{"$f":"KALENDÁŘ!T26","v":0},{"$f":"KALENDÁŘ!U26","v":"2016-07-31"}]
[null,null,{"$f":"KALENDÁŘ!C27","v":""},{"$f":"KALENDÁŘ!D27","v":0},{"$f":"KALENDÁŘ!E27","v":0},{"$f":"KALENDÁŘ!F27","v":"Procházka v centru"},{"$f":"KALENDÁŘ!G27","v":0},{"$f":"KALENDÁŘ!H27","v":0},{"$f":"KALENDÁŘ!I27","v":""},{"$f":"KALENDÁŘ!J27","v":0},{"$f":"KALENDÁŘ!K27","v":0},{"$f":"KALENDÁŘ!L27","v":""},{"$f":"KALENDÁŘ!M27","v":0},{"$f":"KALENDÁŘ!N27","v":0},{"$f":"KALENDÁŘ!O27","v":"Městská rada"},{"$f":"KALENDÁŘ!P27","v":0},{"$f":"KALENDÁŘ!Q27","v":0},{"$f":"KALENDÁŘ!R27","v":""},{"$f":"KALENDÁŘ!S27","v":0},{"$f":"KALENDÁŘ!T27","v":0},{"$f":"KALENDÁŘ!U27","v":""}]
[null,null,{"$f":"KALENDÁŘ!C28","v":""},{"$f":"KALENDÁŘ!D28","v":0},{"$f":"KALENDÁŘ!E28","v":0},{"$f":"KALENDÁŘ!F28","v":"Návštěva pivnic"},{"$f":"KALENDÁŘ!G28","v":0},{"$f":"KALENDÁŘ!H28","v":0},{"$f":"KALENDÁŘ!I28","v":""},{"$f":"KALENDÁŘ!J28","v":0},{"$f":"KALENDÁŘ!K28","v":0},{"$f":"KALENDÁŘ!L28","v":""},{"$f":"KALENDÁŘ!M28","v":0},{"$f":"KALENDÁŘ!N28","v":0},{"$f":"KALENDÁŘ!O28","v":""},{"$f":"KALENDÁŘ!P28","v":0},{"$f":"KALENDÁŘ!Q28","v":0},{"$f":"KALENDÁŘ!R28","v":""},{"$f":"KALENDÁŘ!S28","v":0},{"$f":"KALENDÁŘ!T28","v":0},{"$f":"KALENDÁŘ!U28","v":""}]
[null,null,{"$f":"KALENDÁŘ!C29","v":""},{"$f":"KALENDÁŘ!D29","v":0},{"$f":"KALENDÁŘ!E29","v":0},{"$f":"KALENDÁŘ!F29","v":""},{"$f":"KALENDÁŘ!G29","v":0},{"$f":"KALENDÁŘ!H29","v":0},{"$f":"KALENDÁŘ!I29","v":""},{"$f":"KALENDÁŘ!J29","v":0},{"$f":"KALENDÁŘ!K29","v":0},{"$f":"KALENDÁŘ!L29","v":""},{"$f":"KALENDÁŘ!M29","v":0},{"$f":"KALENDÁŘ!N29","v":0},{"$f":"KALENDÁŘ!O29","v":""},{"$f":"KALENDÁŘ!P29","v":0},{"$f":"KALENDÁŘ!Q29","v":0},{"$f":"KALENDÁŘ!R29","v":""},{"$f":"KALENDÁŘ!S29","v":0},{"$f":"KALENDÁŘ!T29","v":0},{"$f":"KALENDÁŘ!U29","v":""}]
[null,null,{"$f":"KALENDÁŘ!C30","v":""},{"$f":"KALENDÁŘ!D30","v":0},{"$f":"KALENDÁŘ!E30","v":0},{"$f":"KALENDÁŘ!F30","v":""},{"$f":"KALENDÁŘ!G30","v":0},{"$f":"KALENDÁŘ!H30","v":0},{"$f":"KALENDÁŘ!I30","v":""},{"$f":"KALENDÁŘ!J30","v":0},{"$f":"KALENDÁŘ!K30","v":0},{"$f":"KALENDÁŘ!L30","v":""},{"$f":"KALENDÁŘ!M30","v":0},{"$f":"KALENDÁŘ!N30","v":0},{"$f":"KALENDÁŘ!O30","v":""},{"$f":"KALENDÁŘ!P30","v":0},{"$f":"KALENDÁŘ!Q30","v":0},{"$f":"KALENDÁŘ!R30","v":""},{"$f":"KALENDÁŘ!S30","v":0},{"$f":"KALENDÁŘ!T30","v":0},{"$f":"KALENDÁŘ!U30","v":""}]
[null,null,{"$f":"KALENDÁŘ!C31","v":"2016-08-01"},{"$f":"KALENDÁŘ!D31","v":0},{"$f":"KALENDÁŘ!E31","v":0},{"$f":"KALENDÁŘ!F31","v":"2016-08-02"},null,null,{"$f":"KALENDÁŘ!I31","v":"POZNÁMKY:"}]
[null,null,{"$f":"KALENDÁŘ!C32","v":""},{"$f":"KALENDÁŘ!D32","v":0},{"$f":"KALENDÁŘ!E32","v":0},{"$f":"KALENDÁŘ!F32","v":""}]
[null,null,{"$f":"KALENDÁŘ!C33","v":""},{"$f":"KALENDÁŘ!D33","v":0},{"$f":"KALENDÁŘ!E33","v":0},{"$f":"KALENDÁŘ!F33","v":""}]
[null,null,{"$f":"KALENDÁŘ!C34","v":""},{"$f":"KALENDÁŘ!D34","v":0},{"$f":"KALENDÁŘ!E34","v":0},{"$f":"KALENDÁŘ!F34","v":""}]
[null,null,{"$f":"KALENDÁŘ!C35","v":""},{"$f":"KALENDÁŘ!D35","v":0},{"$f":"KALENDÁŘ!E35","v":0},{"$f":"KALENDÁŘ!F35","v":""}]

{"sheet":"SPRÁVCE","index":3,"n_rows":14,"n_cols":3,"rows_kept":14,"hidden":true}
[]
[null,"MĚSÍC","ČÍSLO"]
[null,"LEDEN",1]
[null,"ÚNOR",2]
[null,"BŘEZEN",3]
[null,"DUBEN",4]
[null,"KVĚTEN",5]
[null,"ČERVEN",6]
[null,"ČERVENEC",7]
[null,"SRPEN",8]
[null,"ZÁŘÍ",9]
[null,"ŘÍJEN",10]
[null,"LISTOPAD",11]
[null,"PROSINEC",12]